bitfinex/quotes_SOLUSD_20250611
["timestamp","ask_amount","ask_price","bid_price","bid_amount"]
[1749641880697,18.11498083,164.7,164.69,18.15993818]
[1749641880900,18.11498083,164.7,164.69,18.15993821]
[1749641881201,18.11498083,164.7,164.69,18.15993822]
[1749641881502,18.11498083,164.7,164.69,22.70999309]
[1749641881698,18.11498083,164.7,164.69,18.15997443]
[1749641881902,18.11498083,164.7,164.69,22.70997202]
[1749641882400,18.11498083,164.7,164.69,18.15995336]
[1749641882615,18.11498083,164.7,164.69,22.70995095]
[1749641882821,18.11498083,164.7,164.69,13.60995577]
[1749641882994,36.76462969,164.7,164.69,22.71027091]
[1749641883906,36.76462969,164.7,164.69,22.71035494]
[1749641884091,36.76462969,164.7,164.69,22.71045449]
[1749641884601,36.76462969,164.7,164.69,18.16020513]
[1749641884795,36.76462969,164.7,164.69,22.71045449]
[1749641885186,36.76462969,164.7,164.69,18.16020513]
[1749641885398,36.76462969,164.7,164.69,22.71041233]
[1749641885604,62.76462969,164.7,164.69,13.60995577]
[1749641885791,36.76462969,164.7,164.69,13.64647408]
[1749641885990,36.76462969,164.7,164.69,13.64653065]
[1749641886834,0.14216157,164.65,164.6,5.62899732]
[1749641886991,6.64117385,164.61,164.59,5.62899732]
[1749641887189,5.40216157,164.61,164.6,9.09218759]
[1749641887391,42.35763089,164.61,164.6,9.09223657]
[1749641887590,0.14216157,164.59,164.51,5.62899732]
[1749641887834,6.2186032,164.57,164.52,4.55361794]
[1749641887983,6.2186032,164.57,164.5,5.62899732]
[1749641888185,6.07605164,164.59,164.51,4.55343518]
[1749641888421,5.26,164.58,164.53,26.0]
[1749641888719,15.65402046,164.58,164.54,4.55322202]
[1749641888901,15.65402046,164.58,164.55,4.55322154]
[1749641889089,15.65402046,164.58,164.56,4.55315431]
[1749641889287,15.65402046,164.58,164.54,10.39402046]
[1749641889489,15.65402046,164.58,164.55,4.55321472]
[1749641889912,15.65402046,164.58,164.56,4.55321417]
[1749641890115,15.65402046,164.58,164.57,4.55345339]
[1749641890416,5.26,164.58,164.57,4.55339297]
[1749641890723,5.26,164.58,164.57,10.39402046]
[1749641890889,5.26,164.58,164.57,4.55262103]
[1749641891199,5.26,164.58,164.55,10.39402046]
[1749641891595,5.26,164.58,164.56,4.52139464]
[1749641891816,5.26,164.58,164.55,10.39402046]
[1749641891992,5.26,164.58,164.56,4.52127773]
[1749641892187,5.26,164.58,164.54,1.5779]
[1749641892188,15.65402046,164.58,164.54,1.5779]
[1749641892512,15.65402046,164.58,164.55,4.52190982]
[1749641892812,15.65402046,164.58,164.53,36.39402046]
[1749641893003,15.65402046,164.58,164.54,4.52192832]
[1749641893189,10.39402046,164.57,164.55,4.52192832]
[1749641893388,10.39402046,164.57,164.53,26.0]
[1749641893604,10.39402046,164.57,164.54,4.52229731]
[1749641893917,10.39402046,164.57,164.53,26.0]
[1749641894114,21.73009288,164.58,164.53,36.39402046]
[1749641894408,15.65402046,164.58,164.53,36.39402046]
[1749641894612,5.26,164.58,164.54,14.91363413]
[1749641894918,43.32964886,164.63,164.57,10.39402046]
[1749641894919,5.26,164.61,164.57,10.39402046]
[1749641895308,15.65402046,164.61,164.56,10.39402046]
[1749641895811,5.26,164.61,164.58,10.39402046]
[1749641895994,5.26,164.61,164.57,10.39402046]
[1749641896594,5.26,164.61,164.58,4.51854524]
[1749641896795,5.26,164.61,164.59,4.51854471]
[1749641896996,5.26,164.61,164.57,10.39402046]
[1749641897203,5.26,164.61,164.58,4.51854417]
[1749641897410,5.26,164.61,164.59,4.51852265]
[1749641897607,5.26,164.61,164.58,10.39402046]
[1749641899598,10.39402046,164.6,164.54,26.0]
[1749641899914,10.39402046,164.59,164.55,14.90453338]
[1749641900232,10.39402046,164.6,164.55,10.39402046]
[1749641900604,21.72914299,164.61,164.56,10.39402046]
[1749641900905,11.33512253,164.61,164.58,10.39402046]
[1749641901217,21.72914299,164.61,164.56,10.39402046]
[1749641902833,21.72914299,164.61,164.54,26.0]
[1749641903007,21.72914299,164.61,164.56,10.39402046]
[1749641903616,11.33512253,164.61,164.57,10.39402046]
[1749641903925,21.72914299,164.61,164.56,10.39402046]
[1749641905335,21.72914299,164.61,164.57,10.39402046]
[1749641905539,21.72914299,164.61,164.56,10.39402046]
[1749641906510,21.72914299,164.61,164.54,26.0]
[1749641906716,21.72914299,164.61,164.56,10.39402046]
[1749641907226,11.33512253,164.61,164.56,10.39402046]
[1749641907429,10.39402046,164.6,164.56,10.39402046]
[1749641907917,21.72914299,164.61,164.56,10.39402046]
[1749641909539,21.72914299,164.61,164.54,26.0]
[1749641909743,21.72914299,164.61,164.56,10.39402046]
[1749641910736,11.33512253,164.61,164.56,10.39402046]
[1749641911040,21.72914299,164.61,164.56,10.39402046]
[1749641913031,21.72914299,164.61,164.57,10.39402046]
[1749641914245,11.33512253,164.61,164.57,10.39402046]
[1749641915032,11.33512253,164.61,164.58,4.55267733]
[1749641915232,11.33512253,164.61,164.59,4.55267733]
[1749641915436,11.4772841,164.61,164.6,4.55267733]
[1749641915627,11.4772841,164.61,164.6,4.55268874]
[1749641916433,11.4772841,164.61,164.6,4.55267378]
[1749641916748,11.4772841,164.61,164.6,14.94669424]
[1749641916749,5.26,164.61,164.6,14.94669424]
[1749641916948,5.26,164.61,164.6,10.39402046]
[1749641917130,5.26,164.61,164.6,14.90871924]
[1749641917645,5.26,164.61,164.6,19.46056249]
[1749641917959,5.26,164.61,164.6,14.90871924]
[1749641918458,5.26,164.61,164.6,19.46052029]
[1749641918628,5.26,164.61,164.6,14.90871924]
[1749641918958,5.26,164.61,164.6,19.46052029]
[1749641919256,5.26,164.61,164.6,24.01232142]
[1749641919569,15.79618203,164.61,164.6,4.55244556]
[1749641919731,5.40216157,164.61,164.6,9.10482782]
[1749641919931,5.26,164.61,164.6,9.10476167]
[1749641920258,11.33496506,164.61,164.6,4.55237987]
[1749641920428,11.33496506,164.61,164.6,9.10475991]
[1749641920627,11.33496506,164.61,164.6,9.10482994]
[1749641920628,21.87114709,164.61,164.6,9.10482994]
[1749641920951,21.87114709,164.61,164.6,4.55263914]
[1749641921120,21.87114709,164.61,164.6,9.10534158]
[1749641921323,21.87114709,164.61,164.6,4.55270358]
[1749641921637,21.87114709,164.61,164.6,9.10540488]
[1749641921941,21.87114709,164.61,164.57,10.39402046]
[1749641922143,21.87114709,164.61,164.58,13.62900559]
[1749641922335,0.14216157,164.6,164.59,4.55273325]
[1749641922537,0.14216157,164.6,164.59,4.55285576]
[1749641922722,0.14216157,164.6,164.59,4.55285574]
[1749641922934,0.14216157,164.6,164.59,4.55273023]
[1749641923153,0.14216157,164.6,164.59,4.55273135]
[1749641923328,6.07570326,164.59,164.56,10.39402046]
[1749641923530,6.07570326,164.59,164.57,4.5248347]
[1749641923735,6.07570326,164.59,164.58,9.07757125]
[1749641923940,6.07570326,164.59,164.58,4.55273601]
[1749641924139,6.07570326,164.59,164.58,9.07931206]
[1749641924344,6.07570326,164.59,164.58,9.07937537]
[1749641925032,6.07570326,164.59,164.58,9.07939648]
[1749641925429,6.07570326,164.59,164.58,9.07949849]
[1749641925430,35.26153415,164.59,164.58,9.07949849]
[1749641925747,18.79181043,164.58,164.52,10.39402046]
[1749641925955,10.39402046,164.57,164.53,9.08398155]
[1749641926133,10.39402046,164.57,164.54,9.08398155]
[1749641926468,18.79181043,164.58,164.55,9.08412591]
[1749641926640,0.14216157,164.58,164.56,4.53198152]
[1749641926951,0.14216157,164.58,164.57,4.55376253]
[1749641927167,10.53618203,164.58,164.57,4.55376199]
[1749641927453,16.61225445,164.58,164.57,4.55367755]
[1749641927626,16.61225445,164.58,164.57,4.55365298]
[1749641927829,16.61225445,164.58,164.57,4.55371435]
[1749641928258,16.61225445,164.58,164.57,4.55364932]
[1749641928432,16.61225445,164.58,164.57,4.55364231]
[1749641928626,16.61225445,164.58,164.57,9.08962593]
[1749641929152,16.61225445,164.58,164.57,4.53573645]
[1749641929351,16.61225445,164.58,164.53,10.39402046]
[1749641929555,10.39402046,164.57,164.54,4.53575363]
[1749641929859,10.39402046,164.57,164.55,9.07652934]
[1749641930055,16.61262366,164.57,164.56,9.0765288]
[1749641930251,16.61262366,164.57,164.56,9.07652826]
[1749641930462,16.61262366,164.57,164.56,4.53575363]
[1749641930835,16.61262366,164.57,164.56,9.0765208]
[1749641931082,16.61262366,164.57,164.56,4.53575363]
[1749641931357,16.61262366,164.57,164.56,9.0765208]
[1749641931651,16.61262366,164.57,164.56,9.07651888]
[1749641931856,35.26227252,164.57,164.56,4.53575363]
[1749641933035,18.79181043,164.56,164.5,5.65286529]
[1749641933234,10.39402046,164.54,164.51,4.54114541]
[1749641933436,10.39402046,164.54,164.52,9.08266708]
[1749641933732,10.53618203,164.54,164.53,9.08266708]
[1749641934053,29.18583089,164.54,164.53,9.0829048]
[1749641934261,29.18583089,164.54,164.53,9.08290871]
[1749641934441,29.18583089,164.54,164.53,9.08291151]
[1749641934753,29.18583089,164.54,164.53,9.08291492]
[1749641934966,35.26338042,164.54,164.53,9.08291492]
[1749641935262,35.26338042,164.54,164.53,9.08291322]
[1749641935665,35.26338042,164.54,164.53,4.54114541]
[1749641935861,35.26338042,164.54,164.53,9.08291435]
[1749641936039,35.26338042,164.54,164.53,4.54114541]
[1749641936439,18.79181043,164.53,164.48,5.65286529]
[1749641936651,10.39402046,164.51,164.49,9.07828507]
[1749641936851,15.65402046,164.52,164.5,9.078475]
[1749641937055,15.65402046,164.52,164.47,16.04688575]
[1749641937056,15.79618203,164.52,164.51,9.07834745]
[1749641937247,15.79618203,164.52,164.51,9.07834678]
[1749641937448,5.26,164.52,164.51,9.0783095]
[1749641937741,5.26,164.52,164.51,9.07822527]
[1749641938161,5.26,164.52,164.51,9.0782031]
[1749641938352,5.26,164.52,164.51,4.53764603]
[1749641938660,5.26,164.52,164.51,19.47190876]
[1749641938958,5.26,164.52,164.51,19.47159565]
[1749641939144,5.26,164.52,164.51,19.47159451]
[1749641939346,5.26,164.52,164.51,14.93166649]
[1749641939550,5.26,164.52,164.51,25.1244598]
[1749641939956,5.26,164.52,164.51,25.13026059]
[1749641940340,5.26,164.52,164.51,19.46564275]
[1749641940537,5.26,164.52,164.51,19.4655694]
[1749641940763,5.26,164.52,164.51,14.92564138]
[1749641940947,5.26,164.52,164.51,19.46550266]
[1749641941267,5.26,164.52,164.51,9.07154787]
[1749641941448,21.87447038,164.52,164.51,4.53162092]
[1749641941859,21.87447038,164.52,164.51,9.07217507]
[1749641942161,21.87447038,164.52,164.51,9.07217657]
[1749641942345,21.87447038,164.52,164.51,4.54055565]
[1749641942548,21.87447038,164.52,164.47,10.39402046]
[1749641942746,21.87447038,164.52,164.48,9.07152355]
[1749641942948,11.48044992,164.52,164.49,9.07152301]
[1749641943254,21.87447038,164.52,164.5,9.07152247]
[1749641943456,21.87447038,164.52,164.51,4.54068387]
[1749641943651,0.14216157,164.51,164.47,10.39402046]
[1749641943864,10.53618203,164.51,164.48,4.53026277]
[1749641944055,0.14216157,164.51,164.49,4.53026277]
[1749641944369,0.14216157,164.51,164.47,10.39402046]
[1749641944545,6.22103468,164.51,164.48,4.52921289]
[1749641944746,6.22103468,164.51,164.49,4.52921289]
[1749641944972,6.22103468,164.51,164.47,10.39402046]
[1749641945152,6.22103468,164.51,164.48,4.52916601]
[1749641945360,6.22103468,164.51,164.49,4.52916601]
[1749641945559,6.22103468,164.51,164.47,10.39402046]
[1749641945760,6.22103468,164.51,164.48,4.52802681]
[1749641946098,6.22103468,164.51,164.49,4.52802681]
[1749641946266,6.22103468,164.51,164.47,10.39402046]
[1749641946465,6.22103468,164.51,164.48,4.52725402]
[1749641946651,6.22103468,164.51,164.49,4.52725402]
[1749641946973,6.22103468,164.51,164.47,10.39402046]
[1749641947274,6.22103468,164.51,164.48,4.5270963]
[1749641947468,6.22103468,164.51,164.49,4.5270963]
[1749641947673,6.22103468,164.51,164.47,10.39402046]
[1749641947868,6.22103468,164.51,164.48,4.52628555]
[1749641948076,6.22103468,164.51,164.49,4.52628555]
[1749641948275,6.22103468,164.51,164.47,10.39402046]
[1749641948482,6.22103468,164.51,164.48,4.52568432]
[1749641948779,6.22103468,164.51,164.49,4.52568432]
[1749641948962,6.22103468,164.51,164.47,10.39402046]
[1749641949163,6.22103468,164.51,164.48,14.91961696]
[1749641949362,6.22103468,164.51,164.49,4.5255965]
[1749641949557,6.22103468,164.51,164.48,10.39402046]
[1749641949870,6.22103468,164.51,164.49,4.52501102]
[1749641950070,6.22103468,164.51,164.48,10.39402046]
[1749641950261,6.22103468,164.51,164.49,4.52501852]
[1749641950461,6.22103468,164.51,164.48,10.39402046]
[1749641950662,6.22103468,164.51,164.49,4.524591]
[1749641950857,6.22103468,164.51,164.48,10.39402046]
[1749641951173,11.33834127,164.52,164.49,14.91856102]
[1749641951475,11.33834127,164.52,164.49,10.39402046]
[1749641952179,5.26,164.52,164.49,10.39402046]
[1749641952870,5.26,164.52,164.5,4.52393828]
[1749641953077,5.26,164.52,164.49,10.39402046]
[1749641953275,5.26,164.52,164.5,4.52393942]
[1749641953458,5.26,164.52,164.49,10.39402046]
[1749641953659,0.14216157,164.51,164.45,33.31282615]
[1749641953869,10.53618203,164.51,164.46,19.436954]
[1749641954061,10.53618203,164.51,164.47,4.52401479]
[1749641954261,10.53618203,164.51,164.48,4.52401479]
[1749641954571,0.14216157,164.51,164.47,10.39402046]
[1749641954760,0.14216157,164.51,164.48,4.52414707]
[1749641954962,0.14216157,164.51,164.47,10.39402046]
[1749641955175,6.22111423,164.51,164.48,4.52414453]
[1749641955373,6.22111423,164.51,164.47,10.39402046]
[1749641955566,6.22111423,164.51,164.48,4.52375614]
[1749641955758,6.22111423,164.51,164.47,10.39402046]
[1749641955962,6.22111423,164.51,164.48,4.52379258]
[1749641956165,6.22111423,164.51,164.47,10.39402046]
[1749641956369,6.22111423,164.51,164.48,4.52380007]
[1749641956571,6.22111423,164.51,164.47,10.39402046]
[1749641956773,6.22111423,164.51,164.48,4.52370675]
[1749641956984,6.22111423,164.51,164.47,10.39402046]
[1749641957182,6.22111423,164.51,164.48,4.52369925]
[1749641957487,6.22111423,164.51,164.47,10.39402046]
[1749641957665,6.22111423,164.51,164.48,4.52351594]
[1749641957864,6.22111423,164.51,164.47,10.39402046]
[1749641958060,6.22111423,164.51,164.48,4.52359484]
[1749641958260,6.22111423,164.51,164.47,10.39402046]
[1749641958464,6.22111423,164.51,164.48,4.52355537]
[1749641958688,6.22111423,164.51,164.49,4.53273421]
[1749641958888,6.22111423,164.51,164.47,10.39402046]
[1749641959066,6.22111423,164.51,164.48,9.05654655]
[1749641959267,6.22111423,164.51,164.49,4.53273421]
[1749641959466,6.22111423,164.51,164.47,10.39402046]
[1749641959786,10.53618203,164.49,164.44,10.39402046]
[1749641959984,10.53618203,164.49,164.45,9.05805999]
[1749641960186,10.53618203,164.49,164.46,4.53332839]
[1749641960385,10.53618203,164.49,164.45,4.5247316]
[1749641960582,0.14216157,164.47,164.41,1.5705]
[1749641960783,6.5364,164.44,164.42,4.53375054]
[1749641961107,6.5364,164.44,164.35,10.39402046]
[1749641961108,0.14216157,164.4,164.35,10.39402046]
[1749641961383,10.39402046,164.39,164.36,4.53565104]
[1749641961685,10.39402046,164.39,164.34,10.39402046]
[1749641961885,10.39402046,164.39,164.35,4.53597639]
[1749641962085,10.39402046,164.39,164.36,4.53597639]
[1749641962285,10.39402046,164.39,164.34,10.39402046]
[1749641962588,0.14216157,164.4,164.35,4.53603505]
[1749641962793,10.53618203,164.4,164.35,10.39402046]
[1749641963582,10.39402046,164.38,164.32,27.5843]
[1749641963883,0.14216157,164.37,164.33,10.39402046]
[1749641964070,0.14216157,164.37,164.34,10.39402046]
[1749641965885,0.14216157,164.37,164.29,26.0]
[1749641965886,24.875742,164.37,164.29,26.0]
[1749641966105,10.39402046,164.36,164.31,10.39402046]
[1749641966286,10.39402046,164.36,164.32,4.50600111]
[1749641966863,0.14216157,164.35,164.3,26.0]
[1749641967069,10.39402046,164.35,164.31,14.89192532]
[1749641967367,10.39402046,164.35,164.31,10.39402046]
[1749641967782,10.39402046,164.32,164.23,1.5006]
[1749641967990,10.39402046,164.3,164.25,10.39402046]
[1749641968183,10.39402046,164.29,164.25,10.39402046]
[1749641968386,10.39402046,164.3,164.25,10.39402046]
[1749641969491,10.39402046,164.3,164.24,26.0]
[1749641969985,10.39402046,164.28,164.23,11.89462046]
[1749641970991,16.47979262,164.32,164.17,6.5764]
[1749641970992,10.39402046,164.25,164.17,6.5764]
[1749641971179,10.39402046,164.22,164.14,1.568]
[1749641971676,10.39402046,164.22,164.18,10.39402046]
[1749641971879,10.39402046,164.23,164.19,10.39402046]
[1749641972072,10.39402046,164.21,164.16,26.0]
[1749641972374,11.34844255,164.25,164.1,1.5935]
[1749641972375,10.39402046,164.18,164.1,1.5935]
[1749641972577,10.39402046,164.17,164.12,26.0]
[1749641972797,6.61086157,164.21,164.1,1.5935]
[1749641972798,10.39402046,164.18,164.1,1.5935]
[1749641973095,10.39402046,164.18,164.14,10.39402046]
[1749641973292,10.39402046,164.18,164.12,26.0]
[1749641973798,10.39402046,164.18,164.13,10.39402046]
[1749641974375,10.39402046,164.17,164.13,10.39402046]
[1749641974573,10.39402046,164.17,164.12,26.0]
[1749641974797,10.39402046,164.15,164.12,26.0]
[1749641975099,10.39402046,164.17,164.12,36.39402046]
[1749641975274,5.26,164.16,164.12,36.39402046]
[1749641975596,5.26,164.16,164.13,10.39402046]
[1749641977294,5.26,164.16,164.12,26.0]
[1749641977505,5.26,164.16,164.14,10.39402046]
[1749641977892,5.26,164.16,164.15,10.39402046]
[1749641978195,5.26,164.16,164.12,26.0]
[1749641978396,5.26,164.16,164.12,36.39402046]
[1749641978587,5.26,164.16,164.13,10.39402046]
[1749641979500,5.26,164.16,164.12,26.0]
[1749641979683,5.26,164.16,164.13,10.39402046]
[1749641980204,5.26,164.16,164.12,26.0]
[1749641980405,5.26,164.16,164.13,10.39402046]
[1749641981001,5.26,164.16,164.12,26.0]
[1749641981206,5.26,164.16,164.14,10.39402046]
[1749641981403,5.26,164.16,164.12,26.0]
[1749641981591,5.26,164.16,164.14,10.39402046]
[1749641981788,5.26,164.16,164.15,10.39402046]
[1749641982108,5.26,164.16,164.12,26.0]
[1749641982292,5.26,164.16,164.15,10.39402046]
[1749641983882,5.26,164.16,164.15,20.78804092]
[1749641984410,5.26,164.16,164.15,10.39402046]
[1749641985191,5.26,164.16,164.15,20.78804092]
[1749641987408,5.3,164.23,164.15,20.78804092]
[1749641987601,5.3,164.23,164.2,10.39402046]
[1749641987801,5.3,164.23,164.21,10.39402046]
[1749641990110,5.3,164.23,164.2,10.39402046]
[1749641990503,5.3,164.23,164.19,10.39402046]
[1749641990704,10.53618203,164.22,164.17,10.39402046]
[1749641990906,10.39402046,164.21,164.17,10.39402046]
[1749641992416,16.48387056,164.21,164.16,10.39402046]
[1749641992619,10.39402046,164.19,164.14,10.39402046]
[1749641992791,10.39402046,164.18,164.14,10.39402046]
[1749641993211,10.53618203,164.19,164.14,10.39402046]
[1749641993599,0.14216157,164.19,164.15,10.39402046]
[1749641993912,6.2327125,164.19,164.15,10.39402046]
[1749641994213,16.62673296,164.19,164.14,10.39402046]
[1749641994711,10.39402046,164.18,164.14,10.39402046]
[1749641995419,1.6076,164.18,164.07,26.0]
[1749641995596,10.39402046,164.17,164.12,10.39402046]
[1749641995799,16.48550822,164.17,164.12,10.39402046]
[1749641996216,10.39402046,164.16,164.12,10.39402046]
[1749641996416,10.39402046,164.16,164.11,10.39402046]
[1749641996612,10.39402046,164.16,164.07,26.0]
[1749641997119,16.48550822,164.17,164.12,10.39402046]
[1749641997616,16.48550822,164.17,164.11,10.39402046]
[1749641997798,10.39402046,164.16,164.11,10.39402046]
[1749642000420,10.39402046,164.17,164.12,10.39402046]
[1749642001918,18.0926314,164.18,164.12,10.39402046]
[1749642002622,18.0926314,164.18,164.12,36.7582583]
[1749642002914,18.23479297,164.18,164.17,18.83159846]
[1749642003124,18.23479297,164.18,164.12,10.39402046]
[1749642003289,10.39402046,164.17,164.13,4.48251423]
[1749642003491,10.39402046,164.17,164.14,4.48251423]
[1749642003690,10.39402046,164.17,164.12,10.39402046]
[1749642003912,6.09135009,164.17,164.13,8.98596437]
[1749642004207,6.09135009,164.17,164.14,4.4881849]
[1749642004411,6.09135009,164.17,164.15,4.49508672]
[1749642004620,6.09135009,164.17,164.16,4.49508618]
[1749642006922,6.09135009,164.17,164.12,5.60293228]
[1749642006923,41.42358098,164.17,164.12,5.60293228]
[1749642007111,41.42358098,164.17,164.09,7.47057638]
[1749642007112,0.14216157,164.12,164.07,5.60293228]
[1749642007297,0.14216157,164.09,164.07,5.60293228]
[1749642007697,10.53618203,164.09,164.08,4.51128881]
[1749642007897,0.14216157,164.1,164.08,4.51131244]
[1749642008093,0.14216157,164.1,164.05,10.39402046]
[1749642008094,16.63009709,164.1,164.05,10.39402046]
[1749642008314,16.63009709,164.1,164.06,4.51120979]
[1749642008520,16.63009709,164.1,164.07,4.51116731]
[1749642008702,16.63009709,164.1,164.08,4.51116649]
[1749642008909,10.39402046,164.1,164.04,5.60293228]
[1749642009115,5.3,164.11,164.07,10.39402046]
[1749642009423,15.69402046,164.11,164.08,4.51105586]
[1749642009721,15.23126344,164.14,164.09,10.39402046]
[1749642009722,10.53618203,164.14,164.09,10.39402046]
[1749642009907,15.69402046,164.13,164.09,10.39402046]
[1749642010516,5.3,164.13,164.08,5.60293228]
[1749642010712,5.3,164.13,164.09,10.39402046]
[1749642011933,5.3,164.13,164.1,10.39402046]
[1749642013208,5.3,164.13,164.09,15.99695274]
[1749642013408,5.3,164.13,164.09,10.39402046]
[1749642013724,5.3,164.13,164.09,15.99695274]
[1749642015528,5.3,164.13,164.1,10.39402046]
[1749642016156,5.3,164.13,164.09,5.60293228]
[1749642016321,5.3,164.13,164.09,15.99695274]
[1749642016831,5.3,164.13,164.1,10.39402046]
[1749642017733,5.3,164.13,164.09,5.60293228]
[1749642017734,11.39273873,164.13,164.09,15.99695274]
[1749642018030,21.78675919,164.13,164.09,15.99695274]
[1749642018604,11.39273873,164.13,164.09,10.39402046]
[1749642018808,11.39273873,164.13,164.1,10.39402046]
[1749642019012,11.39273873,164.13,164.11,4.53615423]
[1749642019235,11.5349003,164.13,164.12,4.53615423]
[1749642020321,11.5349003,164.13,164.09,10.39402046]
[1749642020521,11.5349003,164.13,164.1,4.53555436]
[1749642020727,11.5349003,164.13,164.11,4.53555436]
[1749642020925,11.5349003,164.13,164.09,10.39402046]
[1749642021115,11.5349003,164.13,164.1,4.53554683]
[1749642021321,11.5349003,164.13,164.11,4.53554683]
[1749642021521,11.5349003,164.13,164.09,10.39402046]
[1749642021711,21.92892076,164.13,164.1,4.53530027]
[1749642021908,21.92892076,164.13,164.11,4.53530027]
[1749642022109,21.92892076,164.13,164.08,10.39402046]
[1749642022324,21.92892076,164.13,164.09,4.53529184]
[1749642022537,21.92892076,164.13,164.1,4.53529184]
[1749642022727,21.92892076,164.13,164.11,4.53529184]
[1749642022920,21.92892076,164.13,164.08,10.39402046]
[1749642023118,21.92892076,164.13,164.09,4.53508165]
[1749642023334,21.92892076,164.13,164.1,4.53508165]
[1749642023532,21.92892076,164.13,164.08,10.39402046]
[1749642023732,21.92892076,164.13,164.09,4.53479938]
[1749642023919,21.92892076,164.13,164.1,4.53479938]
[1749642024121,21.92892076,164.13,164.08,10.39402046]
[1749642024314,21.92892076,164.13,164.09,14.92885601]
[1749642024533,21.92892076,164.13,164.1,4.53483555]
[1749642024740,21.92892076,164.13,164.09,10.39402046]
[1749642024951,21.92892076,164.13,164.1,4.53459995]
[1749642025116,21.92892076,164.13,164.09,10.39402046]
[1749642025445,21.92892076,164.13,164.08,10.39402046]
[1749642025743,21.92892076,164.13,164.09,4.53432111]
[1749642025921,21.92892076,164.13,164.1,4.53432111]
[1749642026124,21.92892076,164.13,164.08,10.39402046]
[1749642026431,21.92892076,164.13,164.09,4.53439828]
[1749642026631,21.92892076,164.13,164.08,10.39402046]
[1749642026829,21.92892076,164.13,164.09,4.5340828]
[1749642027026,21.92892076,164.13,164.08,10.39402046]
[1749642027027,11.5349003,164.13,164.08,10.39402046]
[1749642027222,21.92892076,164.13,164.09,4.5340828]
[1749642027422,21.92892076,164.13,164.08,10.39402046]
[1749642027643,11.39273873,164.13,164.09,14.92807174]
[1749642027955,5.3,164.13,164.12,10.39402046]
[1749642028116,21.78685202,164.13,164.08,10.39402046]
[1749642028319,0.14216157,164.12,164.08,10.39402046]
[1749642028847,11.39283156,164.13,164.09,10.39402046]
[1749642029641,11.39283156,164.13,164.06,26.0]
[1749642029829,11.39283156,164.13,164.09,10.39402046]
[1749642030648,5.3,164.13,164.09,10.39402046]
[1749642031033,11.39275257,164.13,164.09,10.39402046]
[1749642031347,11.39275257,164.13,164.1,4.53577707]
[1749642031546,11.39275257,164.13,164.08,10.39402046]
[1749642031850,11.39275257,164.13,164.09,4.53692512]
[1749642032143,11.39275257,164.13,164.1,4.53692512]
[1749642032342,11.39275257,164.13,164.08,10.39402046]
[1749642032646,21.78677303,164.13,164.09,4.53874791]
[1749642032843,21.78677303,164.13,164.07,10.39402046]
[1749642033036,21.78677303,164.13,164.08,9.07078952]
[1749642033230,21.78677303,164.13,164.09,9.07078898]
[1749642033555,21.78677303,164.13,164.1,4.54092358]
[1749642033730,21.78677303,164.13,164.07,10.39402046]
[1749642033930,21.78677303,164.13,164.08,4.54094566]
[1749642034242,21.78677303,164.13,164.09,4.54094566]
[1749642034435,11.39275257,164.13,164.1,4.54094566]
[1749642034647,11.39275257,164.13,164.07,10.39402046]
[1749642034952,11.39275257,164.13,164.08,9.07521248]
[1749642035246,11.39275257,164.13,164.09,4.54331527]
[1749642035449,11.39275257,164.13,164.1,4.54331527]
[1749642035656,11.39275257,164.13,164.08,10.39402046]
[1749642035657,21.78677303,164.13,164.11,4.54331527]
[1749642035858,11.39275257,164.13,164.08,10.39402046]
[1749642036048,11.39275257,164.13,164.09,9.08045998]
[1749642036346,11.39275257,164.13,164.1,4.54632236]
[1749642036549,11.39275257,164.13,164.11,4.54632236]
[1749642036747,11.39275257,164.13,164.08,10.39402046]
[1749642036952,21.9289346,164.13,164.09,9.09991664]
[1749642037136,21.9289346,164.13,164.1,9.09989494]
[1749642037340,21.9289346,164.13,164.11,4.55178683]
[1749642037536,21.9289346,164.13,164.07,10.39402046]
[1749642037735,21.9289346,164.13,164.08,4.55063285]
[1749642038055,21.9289346,164.13,164.09,4.55063285]
[1749642038245,21.9289346,164.13,164.1,9.10254155]
[1749642038446,21.9289346,164.13,164.11,4.55190816]
[1749642038639,10.39402046,164.12,164.06,16.06173312]
[1749642038952,10.53618203,164.11,164.07,9.10369432]
[1749642039148,10.39402046,164.1,164.08,9.1043152]
[1749642039342,10.53618203,164.1,164.09,4.55244144]
[1749642039831,10.53618203,164.1,164.05,10.39402046]
[1749642040152,6.09421658,164.09,164.06,4.55279461]
[1749642040357,6.09421658,164.09,164.07,4.55279461]
[1749642040559,16.48823704,164.09,164.08,9.1054034]
[1749642041035,16.48823704,164.09,164.08,9.10544297]
[1749642041235,16.48823704,164.09,164.08,9.10544282]
[1749642041654,16.48823704,164.09,164.08,4.55279461]
[1749642042450,16.48823704,164.09,164.04,10.39402046]